bitfinex-derivatives/quotes_BNBF0:USTF0_20250331
["timestamp","ask_amount","ask_price","bid_price","bid_amount"]
[1743385263736,2.33734728,602.61,600.58,0.33301142]
[1743385263936,1.43876777,602.65,600.58,0.33301142]
[1743385264133,1.16809523,602.6,600.58,0.33301142]
[1743385264939,1.16809523,602.59,600.58,0.33301142]
[1743385265336,7.2378288,602.59,600.58,0.33301142]
[1743385265538,6.06973357,602.58,600.58,0.33301142]
[1743385265733,2.33734728,602.57,600.58,0.33301142]
[1743385265933,1.43876777,602.57,600.58,0.33301142]
[1743385266136,1.16809523,602.58,600.58,0.33301142]
[1743385266736,4.94120781,602.58,600.58,0.33301142]
[1743385266940,2.33734728,602.57,600.58,0.33301142]
[1743385267838,3.73277,602.65,600.58,0.33301142]
[1743385268040,1.43876777,602.64,600.58,0.33301142]
[1743385268241,1.16809523,602.64,600.58,0.33301142]
[1743385268443,3.5017703,602.64,600.58,0.33301142]
[1743385268642,9.11461413,602.64,600.58,0.33301142]
[1743385268837,3.77244284,602.63,600.58,0.33301142]
[1743385269043,3.77217452,602.63,600.58,0.33301142]
[1743385269239,1.43876777,602.62,600.58,0.33301142]
[1743385269445,2.33734728,602.63,600.58,0.33301142]
[1743385269946,2.06667474,602.68,600.58,0.33301142]
[1743385270141,1.16809523,602.68,600.58,0.33301142]
[1743385270541,1.4999518,602.67,600.58,0.33301142]
[1743385271341,0.33185657,602.67,600.58,0.33301142]
[1743385274053,0.33185657,602.67,600.6,2.5510302]
[1743385274346,0.33185657,602.67,600.7,0.33294489]
[1743385275543,0.33185657,602.67,601.19,2.5510302]
[1743385275948,0.28903654,602.93,601.21,0.33266246]
[1743385276846,0.28903654,602.93,601.34,2.5510302]
[1743385277050,0.28903654,602.93,601.36,0.33257948]
[1743385278147,6.55275401,603.15,601.36,0.33257948]
[1743385278351,6.55275401,603.14,601.36,0.33257948]
[1743385278650,2.82779879,603.13,601.36,0.33257948]
[1743385278851,6.55332103,603.13,601.36,0.33257948]
[1743385279056,6.05546175,603.12,601.36,0.33257948]
[1743385279246,6.05546175,603.11,601.36,0.33257948]
[1743385279449,0.28895615,602.99,601.36,0.33257948]
[1743385280447,0.30494114,602.98,601.36,0.33257948]
[1743385281047,0.28895615,602.99,601.36,0.33257948]
[1743385281253,2.32934153,603.05,601.36,0.33257948]
[1743385281849,6.05788173,603.28,601.36,0.33257948]
[1743385282053,3.46513345,603.27,601.36,0.33257948]
[1743385282248,0.63645721,603.26,601.36,0.33257948]
[1743385282451,0.63646271,603.25,601.36,0.33257948]
[1743385282649,2.62214987,603.14,601.36,0.33257948]
[1743385282854,6.36280694,603.13,601.36,0.33257948]
[1743385283055,7.19225447,603.12,601.36,0.33257948]
[1743385283261,6.5557203,603.11,601.36,0.33257948]
[1743385283453,6.5557203,603.1,601.36,0.33257948]
[1743385283654,6.5557203,603.09,601.36,0.33257948]
[1743385283850,6.5557203,603.08,601.36,0.33257948]
[1743385284051,6.5557203,603.07,601.36,0.33257948]
[1743385284357,6.5557203,603.06,601.36,0.33257948]
[1743385284552,6.5557203,603.05,601.36,0.33257948]
[1743385284751,6.55969964,603.04,601.36,0.33257948]
[1743385284952,6.55969964,603.03,601.36,0.33257948]
[1743385285149,6.55969964,603.02,601.36,0.33257948]
[1743385285354,6.06186107,603.01,601.36,0.33257948]
[1743385285650,6.06186107,603.0,601.36,0.33257948]
[1743385285857,6.06186107,602.99,601.36,0.33257948]
[1743385286155,6.06186107,602.98,601.36,0.33257948]
[1743385286358,6.06186107,602.97,601.36,0.33257948]
[1743385286555,2.33104761,602.96,601.36,0.33257948]
[1743385286757,2.33104761,602.97,601.36,0.33257948]
[1743385287059,1.16809523,602.96,601.36,0.33257948]
[1743385287660,1.16809523,602.95,601.36,0.33257948]
[1743385288261,1.16809523,602.94,601.36,0.33257948]
[1743385288955,1.16809523,602.93,601.36,0.33257948]
[1743385289761,1.16809523,602.92,601.36,0.33257948]
[1743385290362,1.16809523,602.91,601.36,0.33257948]
[1743385290854,1.16809523,602.9,601.36,0.33257948]
[1743385291558,1.16809523,602.89,601.36,0.33257948]
[1743385292658,0.28902094,603.03,601.36,0.33257948]
[1743385292659,6.07189692,602.99,601.36,0.33257948]
[1743385292859,2.33534497,602.98,601.36,0.33257948]
[1743385293064,6.07240881,603.0,601.36,0.33257948]
[1743385293263,1.16809523,602.97,601.36,0.33257948]
[1743385294463,1.16809523,602.96,601.36,0.33257948]
[1743385294868,1.16809523,602.95,601.36,0.33257948]
[1743385295566,1.16809523,602.94,601.36,0.33257948]
[1743385296470,1.16809523,602.93,601.36,0.33257948]
[1743385296664,1.43687419,602.92,601.36,0.33257948]
[1743385296865,0.89916209,602.92,601.36,0.33257948]
[1743385297062,2.33603628,602.92,601.36,0.33257948]
[1743385297263,2.33603628,602.91,601.36,0.33257948]
[1743385297469,2.33603628,602.9,601.36,0.33257948]
[1743385297971,1.16809523,602.89,601.36,0.33257948]
[1743385298872,1.63667638,603.05,601.36,0.33257948]
[1743385298873,2.33687393,603.02,601.36,0.33257948]
[1743385299066,6.07587222,603.03,601.36,0.33257948]
[1743385299269,6.07587222,603.02,601.36,0.33257948]
[1743385299470,2.33811992,603.01,601.36,0.33257948]
[1743385300172,5.3768168,603.01,601.36,0.33257948]
[1743385300371,3.7377523,603.0,601.36,0.33257948]
[1743385300572,3.77571696,603.0,601.36,0.33257948]
[1743385300967,2.33687393,603.0,601.36,0.33257948]
[1743385301165,1.16809523,602.99,601.36,0.33257948]
[1743385301566,3.50496916,602.99,601.36,0.33257948]
[1743385301767,2.33687393,602.99,601.36,0.33257948]
[1743385301967,0.28899574,603.02,601.36,0.33257948]
[1743385302268,2.83595614,603.1,601.36,0.33257948]
[1743385302470,0.28887699,603.03,601.36,0.33257948]
[1743385305668,1.18815388,603.03,601.36,0.33257948]
[1743385305868,6.86259571,603.03,601.36,0.33257948]
[1743385306175,6.57371872,603.02,601.36,0.33257948]
[1743385306372,6.57444163,603.01,601.36,0.33257948]
[1743385306569,6.879433,603.0,601.36,0.33257948]
[1743385306774,6.879433,602.99,601.36,0.33257948]
[1743385306974,6.879433,602.98,601.36,0.33257948]
[1743385307270,6.879433,602.97,601.36,0.33257948]
[1743385307476,6.57444163,602.96,601.36,0.33257948]
[1743385307779,6.87946499,602.95,601.36,0.33257948]
[1743385307971,6.87946499,602.94,601.36,0.33257948]
[1743385308174,6.87946499,602.93,601.36,0.33257948]
[1743385308373,6.87946499,602.92,601.36,0.33257948]
[1743385308571,6.57444163,602.91,601.36,0.33257948]
[1743385308769,6.07881758,602.9,601.36,0.33257948]
[1743385308976,6.07881758,602.89,601.36,0.33257948]
[1743385309176,6.07881758,602.88,601.36,0.33257948]
[1743385309371,2.33928501,602.87,601.36,0.33257948]
[1743385309572,0.899725,602.87,601.36,0.33257948]
[1743385309776,1.16809523,602.86,601.36,0.33257948]
[1743385310276,7.24691281,602.86,601.36,0.33257948]
[1743385310472,7.24691281,602.85,601.36,0.33257948]
[1743385310676,6.07881758,602.84,601.36,0.33257948]
[1743385310876,6.07881758,602.83,601.36,0.33257948]
[1743385311177,5.37670364,602.82,601.36,0.33257948]
[1743385311369,2.33800676,602.81,601.36,0.33257948]
[1743385312175,3.50610199,602.81,601.36,0.33257948]
[1743385312377,2.33800676,602.8,601.36,0.33257948]
[1743385312775,1.16809523,602.81,601.36,0.33257948]
[1743385313176,2.33800676,602.85,601.36,0.33257948]
[1743385314273,3.03869688,603.11,601.36,0.33257948]
[1743385314274,6.57846703,603.1,601.36,0.33257948]
[1743385314474,0.28893935,602.9,601.36,0.33257948]
[1743385314878,6.57846703,603.07,601.36,0.33257948]
[1743385315075,6.91010898,603.06,601.36,0.33257948]
[1743385315274,6.91011448,603.05,601.36,0.33257948]
[1743385315474,9.94881686,603.04,601.36,0.33257948]
[1743385315678,6.91012548,603.03,601.36,0.33257948]
[1743385315880,2.83785006,603.02,601.36,0.33257948]
[1743385316181,2.33993543,603.02,601.36,0.33257948]
[1743385316382,1.16809523,603.01,601.36,0.33257948]
[1743385316781,7.24980192,603.01,601.36,0.33257948]
[1743385316982,7.24980192,603.0,601.36,0.33257948]
[1743385317178,6.08170669,602.99,601.36,0.33257948]
[1743385317382,6.08170669,602.98,601.36,0.33257948]
[1743385317578,6.08170669,602.97,601.36,0.33257948]
[1743385317779,6.08170669,602.96,601.36,0.33257948]
[1743385317981,0.90041912,602.95,601.36,0.33257948]
[1743385318182,4.64103609,602.96,601.36,0.33257948]
[1743385318383,0.90041912,602.95,601.36,0.33257948]
[1743385318783,3.03869688,602.95,601.36,0.33257948]
[1743385318988,5.37920658,602.95,601.36,0.33257948]
[1743385319283,2.3405097,602.94,601.36,0.33257948]
[1743385319680,0.28891416,602.99,601.36,0.33257948]
[1743385320081,4.07087905,602.99,601.36,0.33257948]
[1743385320279,2.3405097,602.99,601.36,0.33257948]
[1743385320485,3.03869688,602.98,601.36,0.33257948]
[1743385320684,3.93948946,602.98,601.36,0.33257948]
[1743385320879,3.03869688,602.98,601.36,0.33257948]
[1743385321488,0.33165845,603.03,601.36,0.33257948]
[1743385321886,1.16809523,603.08,601.36,0.33257948]
[1743385322289,7.25292775,603.12,601.64,2.5510302]
[1743385322486,6.08483252,603.11,601.66,0.33241365]
[1743385322693,2.3403202,603.1,601.66,0.33241365]
[1743385322893,3.03869688,603.1,601.66,0.33241365]
[1743385323387,5.37901708,603.1,601.66,0.33241365]
[1743385323592,2.3403202,603.09,601.66,0.33241365]
[1743385323985,2.3403202,603.11,601.66,0.33241365]
[1743385324384,6.82022354,603.12,601.66,0.33241365]
[1743385324590,6.08561002,603.11,601.66,0.33241365]
[1743385324790,0.9005714,603.1,601.66,0.33241365]
[1743385324986,6.08561002,603.11,601.66,0.33241365]
[1743385325186,3.93926828,603.1,601.66,0.33241365]
[1743385325393,1.4397488,603.09,601.66,0.33241365]
[1743385325588,2.3403202,603.09,601.66,0.33241365]
[1743385326390,2.3403202,603.11,601.66,0.33241365]
[1743385328196,3.03869688,603.12,601.66,0.33241365]
[1743385328991,1.16809523,603.21,601.66,0.33241365]
[1743385329494,3.51092283,603.31,601.66,0.33241365]
[1743385329694,7.25648892,603.31,601.66,0.33241365]
[1743385329887,7.25648892,603.3,601.66,0.33241365]
[1743385330088,6.08839369,603.29,601.66,0.33241365]
[1743385330302,2.3428276,603.28,601.66,0.33241365]
[1743385330505,3.93978442,603.28,601.66,0.33241365]
[1743385330697,3.74556609,603.27,601.66,0.33241365]
[1743385330892,6.08839369,603.27,601.66,0.33241365]
[1743385331104,2.3428276,603.26,601.66,0.33241365]
[1743385331293,3.93978442,603.26,601.66,0.33241365]
[1743385331497,1.44060234,603.25,601.66,0.33241365]
[1743385331697,2.34168988,603.25,601.66,0.33241365]
[1743385331892,3.5103878,603.25,601.66,0.33241365]
[1743385332099,2.34229257,603.24,601.66,0.33241365]
[1743385332292,1.16809523,603.25,601.66,0.33241365]
[1743385332502,1.298,603.23,601.66,0.33241365]
[1743385333497,3.64029257,603.23,601.66,0.33241365]
[1743385333693,1.298,603.23,601.66,0.33241365]
[1743385356513,0.28869486,603.58,601.66,0.33241365]
[1743385356708,0.30468851,603.57,601.66,0.33241365]
[1743385356909,2.63184441,603.57,601.66,0.33241365]
[1743385357110,0.30468851,603.56,601.66,0.33241365]
[1743385357313,0.30468851,603.57,601.66,0.33241365]
[1743385357613,0.30468851,603.56,601.66,0.33241365]
[1743385357814,0.30468851,603.55,601.66,0.33241365]
[1743385358113,0.30468851,603.54,601.66,0.33241365]
[1743385358314,0.30468851,603.55,601.66,0.33241365]
[1743385358612,0.30468851,603.54,601.66,0.33241365]
[1743385358812,0.30468851,603.53,601.66,0.33241365]
[1743385359015,0.30468851,603.54,601.66,0.33241365]
[1743385359211,1.52,603.52,601.66,0.33241365]
[1743385359415,0.30468851,603.51,601.66,0.33241365]
[1743385360312,1.52,603.52,601.66,0.33241365]
[1743385360511,0.30470786,603.51,601.66,0.33241365]
[1743385361511,6.35305172,603.51,601.66,0.33241365]
[1743385361715,2.63206479,603.5,601.66,0.33241365]
[1743385361913,0.30470786,603.49,601.66,0.33241365]
[1743385362717,6.35351725,603.49,601.66,0.33241365]
[1743385362914,2.32735693,603.48,601.66,0.33241365]
[1743385363218,3.93383416,603.48,601.66,0.33241365]
[1743385363419,0.59338455,603.47,601.66,0.33241365]
[1743385363721,0.3046873,603.46,601.66,0.33241365]
[1743385365116,2.32677582,603.48,601.66,0.33241365]
[1743385365321,0.30469418,603.47,601.9,2.5510302]
[1743385365619,0.30469418,603.47,601.92,0.33227006]
[1743385366215,0.28867331,603.46,601.92,0.33227006]
[1743385368324,2.32677582,603.5,601.92,0.33227006]
[1743385368524,0.28866492,603.47,601.92,0.33227006]
[1743385369224,1.52,603.52,601.92,0.33227006]
[1743385372521,1.52,603.52,601.99,2.5510302]
[1743385372822,1.52,603.52,602.01,0.33222039]
[1743385373028,0.3046579,603.51,602.01,0.33222039]
[1743385374132,1.52,603.52,602.01,0.33222039]
[1743385374527,0.28865535,603.5,602.01,0.33222039]
[1743385375031,1.16809523,603.49,602.01,0.33222039]
[1743385375928,1.16809523,603.48,602.01,0.33222039]
[1743385376329,7.73564151,603.48,602.01,0.33222039]
[1743385376529,6.90168089,603.47,602.01,0.33222039]
[1743385376727,2.82995056,603.46,602.01,0.33222039]
[1743385376930,6.57026425,603.46,602.01,0.33222039]
[1743385377131,3.13469878,603.45,602.01,0.33222039]
[1743385377432,5.37289729,603.45,602.01,0.33222039]
[1743385377629,4.0290313,603.44,602.01,0.33222039]
[1743385377830,0.63619296,603.43,602.01,0.33222039]
[1743385378032,0.63619846,603.42,602.01,0.33222039]
[1743385378233,0.63620395,603.41,602.01,0.33222039]
[1743385378432,0.33145508,603.4,602.01,0.33222039]
[1743385378828,6.90171933,603.4,602.01,0.33222039]
[1743385379029,2.82995056,603.39,602.01,0.33222039]
[1743385379233,2.33260777,603.39,602.01,0.33222039]
[1743385379429,3.500703,603.39,602.01,0.33222039]
[1743385379635,7.73835948,603.39,602.01,0.33222039]
[1743385379835,6.57026425,603.38,602.01,0.33222039]
[1743385380028,2.82995056,603.37,602.01,0.33222039]
[1743385380231,6.57026425,603.37,602.01,0.33222039]
[1743385380436,7.73835948,603.36,602.01,0.33222039]
[1743385380631,6.57026425,603.35,602.01,0.33222039]
[1743385380831,2.82995056,603.34,602.01,0.33222039]
[1743385381033,0.89715683,603.34,602.01,0.33222039]
[1743385381229,9.62886351,603.34,602.01,0.33222039]
[1743385381436,6.09096357,603.33,602.01,0.33222039]
[1743385381633,2.34381084,603.32,602.01,0.33222039]
[1743385381838,2.3426783,603.31,602.01,0.33222039]
[1743385382032,2.3426783,603.3,602.01,0.33222039]
[1743385382232,2.64752603,603.29,602.01,0.33222039]
[1743385382435,2.97904704,603.28,602.01,0.33222039]
[1743385382631,2.97905254,603.27,602.01,0.33222039]
[1743385382835,4.29532999,603.26,602.01,0.33222039]
[1743385383132,2.97911401,603.25,602.01,0.33222039]
[1743385383439,4.27316272,603.21,602.01,0.33222039]
[1743385383643,2.97914149,603.2,602.01,0.33222039]
[1743385383836,2.63648634,603.16,602.01,0.33222039]
[1743385384044,2.63648634,603.06,602.01,0.33222039]
[1743385384340,4.29538047,603.05,602.01,0.33222039]
[1743385384538,1.63667638,603.0,602.01,0.33222039]
[1743385384735,0.30489821,602.99,602.01,0.33222039]
[1743385384934,1.47299344,602.99,602.01,0.33222039]
[1743385385139,1.16809523,602.99,602.01,0.33222039]
[1743385385745,1.16809523,603.0,602.01,0.33222039]
[1743385386337,1.16809523,603.14,602.01,0.33222039]
[1743385386938,1.45693865,603.14,602.01,0.33222039]
[1743385387741,1.16809523,603.13,602.01,0.33222039]
[1743385388137,0.28884342,603.14,602.01,0.33222039]
[1743385388644,5.38740649,603.22,602.01,0.33222039]
[1743385388945,3.04773807,603.22,602.01,0.33222039]
[1743385389543,3.74191648,603.35,602.01,0.33222039]
[1743385389845,0.28888778,603.25,602.01,0.33222039]
[1743385392246,6.57810199,603.44,602.01,0.33222039]
[1743385392446,6.57810199,603.43,602.01,0.33222039]
[1743385392643,0.288726,603.27,602.01,0.33222039]
[1743385393451,6.08029456,603.41,602.01,0.33222039]
[1743385393651,2.33857483,603.4,602.01,0.33222039]
[1743385393849,3.04773807,603.4,602.01,0.33222039]
[1743385394454,0.28867211,603.41,602.01,0.33222039]
[1743385395152,2.33826246,603.49,602.01,0.33222039]
[1743385395352,2.33826246,603.5,602.01,0.33222039]
[1743385395550,2.33826246,603.49,602.01,0.33222039]
[1743385395750,2.33826246,603.48,602.01,0.33222039]
[1743385395948,2.33826246,603.47,602.01,0.33222039]
[1743385396153,2.33826246,603.46,602.01,0.33222039]
[1743385396349,6.57698816,603.47,602.01,0.33222039]
[1743385396559,1.16809523,603.45,602.01,0.33222039]
[1743385396748,7.24763465,603.45,602.01,0.33222039]
[1743385396953,6.07953942,603.44,602.01,0.33222039]
[1743385397151,6.07953942,603.43,602.01,0.33222039]
[1743385397357,6.07953942,603.42,602.01,0.33222039]
[1743385397558,2.33934896,603.41,602.01,0.33222039]
[1743385397753,0.89973993,603.41,602.01,0.33222039]
[1743385398151,1.16809523,603.4,602.01,0.33222039]
[1743385398553,7.24763465,603.4,602.01,0.33222039]
[1743385398751,6.07953942,603.39,602.01,0.33222039]
[1743385398955,6.07953942,603.38,602.01,0.33222039]
[1743385399159,6.07953942,603.37,602.01,0.33222039]
[1743385399359,6.07953942,603.36,602.01,0.33222039]
[1743385399554,2.33826246,603.35,602.01,0.33222039]
[1743385399754,3.04773807,603.36,602.01,0.33222039]
[1743385400358,1.16809523,603.35,602.01,0.33222039]
[1743385400666,4.94606209,603.35,602.01,0.33222039]
[1743385400859,4.90841828,603.34,602.01,0.33222039]
[1743385401057,6.080027,603.33,602.01,0.33222039]
[1743385401358,1.63667638,603.51,602.01,0.33222039]
[1743385401359,9.12776507,603.32,602.01,0.33222039]
[1743385401555,6.080027,603.31,602.01,0.33222039]
[1743385401760,2.33944433,603.3,602.01,0.33222039]
[1743385401955,0.89973993,603.3,602.01,0.33222039]
[1743385402156,6.080027,603.3,602.01,0.33222039]
[1743385402355,3.79634343,603.29,602.01,0.33222039]
[1743385402561,3.74058267,603.28,602.01,0.33222039]
[1743385402764,2.33842557,603.27,602.01,0.33222039]
[1743385402962,0.89973993,603.27,602.01,0.33222039]
[1743385403359,3.947478,603.27,602.01,0.33222039]
[1743385403556,3.04773807,603.27,602.01,0.33222039]
[1743385404360,6.0808474,603.48,602.01,0.33222039]
[1743385404556,2.83736348,603.47,602.01,0.33222039]
[1743385404759,3.94768363,603.47,602.01,0.33222039]
[1743385404958,3.74098894,603.46,602.01,0.33222039]
[1743385405264,6.57835242,603.46,602.01,0.33222039]
[1743385405557,4.00545871,603.45,602.01,0.33222039]
[1743385405762,3.74098894,603.44,602.01,0.33222039]
[1743385405961,6.0808474,603.44,602.01,0.33222039]
[1743385406160,7.24894263,603.43,602.01,0.33222039]
[1743385406362,6.0808474,603.42,602.01,0.33222039]
[1743385406663,6.0808474,603.41,602.01,0.33222039]
[1743385406964,6.0808474,603.4,602.01,0.33222039]
[1743385407158,6.0808474,603.39,602.01,0.33222039]
[1743385407357,6.0808474,603.38,602.01,0.33222039]
[1743385407561,2.33985846,603.37,602.01,0.33222039]
[1743385407757,0.89994556,603.37,602.01,0.33222039]
[1743385407961,2.33985846,603.37,602.01,0.33222039]
[1743385408160,5.38759653,603.37,602.01,0.33222039]
[1743385408363,1.4388419,603.36,602.01,0.33222039]
[1743385408564,2.33878746,603.36,602.01,0.33222039]
[1743385408964,3.50688269,603.36,602.01,0.33222039]
[1743385409467,2.33878746,603.36,602.01,0.33222039]
[1743385409661,0.28875594,603.38,602.01,0.33222039]
[1743385410567,1.4388419,603.45,602.01,0.33222039]
[1743385410768,0.89994556,603.46,602.01,0.33222039]
[1743385411068,1.16809523,603.44,602.01,0.33222039]
[1743385411664,7.25357023,603.44,602.01,0.33222039]
[1743385411868,6.085475,603.43,602.01,0.33222039]
[1743385412068,6.085475,603.42,602.01,0.33222039]
[1743385412370,2.34164275,603.41,602.01,0.33222039]
[1743385412571,0.90063183,603.41,602.01,0.33222039]
[1743385412775,1.16809523,603.4,602.01,0.33222039]
[1743385413172,7.25370927,603.4,602.01,0.33222039]
[1743385413366,2.34062078,603.39,602.01,0.33222039]
[1743385413565,5.38835885,603.39,602.01,0.33222039]
[1743385413767,2.34057566,603.38,602.01,0.33222039]
[1743385414364,0.90065213,603.43,602.01,0.33222039]
[1743385414566,1.16809523,603.44,602.01,0.33222039]
[1743385414768,1.16809523,603.42,602.01,0.33222039]
[1743385415369,1.16809523,603.44,602.01,0.33222039]
[1743385415773,3.50867089,603.44,602.01,0.33222039]
[1743385416076,2.34057566,603.43,602.01,0.33222039]
[1743385416276,1.16809523,603.44,602.01,0.33222039]
[1743385416479,2.34057566,603.45,602.01,0.33222039]
[1743385416671,4.94943455,603.5,602.01,0.33222039]
[1743385416872,3.50867089,603.49,602.01,0.33222039]
[1743385417372,1.43992353,603.48,602.01,0.33222039]
[1743385417578,4.91133493,603.49,602.01,0.33222039]
[1743385417778,2.34057566,603.48,602.01,0.33222039]
[1743385418072,2.34057566,603.49,602.01,0.33222039]
[1743385418278,1.16809523,603.5,602.01,0.33222039]
[1743385418478,1.16809523,603.48,602.01,0.33222039]
[1743385418882,1.786,603.47,602.01,0.33222039]
[1743385419280,2.95409523,603.47,602.01,0.33222039]
[1743385419675,6.73545609,603.47,602.01,0.33222039]
[1743385419886,6.08492327,603.46,602.01,0.33222039]
[1743385420087,0.90065213,603.45,602.01,0.33222039]
[1743385420380,3.04773807,603.45,602.01,0.33222039]
[1743385420572,6.82916895,603.45,602.01,0.33222039]
[1743385420777,2.34051897,603.44,602.01,0.33222039]
[1743385421783,2.34051897,603.45,602.01,0.33222039]
[1743385423083,2.3402365,603.45,602.01,0.33222039]
[1743385424783,6.82872216,603.46,602.01,0.33222039]
[1743385424983,6.08446532,603.45,602.01,0.33222039]
[1743385425183,0.90065213,603.44,602.01,0.33222039]
[1743385425383,6.08453454,603.45,602.01,0.33222039]
[1743385425583,1.16809523,603.43,602.01,0.33222039]
[1743385425779,3.50949265,603.43,602.01,0.33222039]
[1743385425986,0.90065213,603.42,602.01,0.33222039]
[1743385426186,1.16809523,603.43,602.01,0.33222039]
[1743385426386,7.25255458,603.43,602.01,0.33222039]
[1743385426685,6.08445935,603.42,602.01,0.33222039]
[1743385426892,2.3402365,603.41,602.01,0.33222039]
[1743385427080,3.50833173,603.43,602.01,0.33222039]
[1743385427285,3.04773807,603.41,602.01,0.33222039]
[1743385427682,5.38797457,603.41,602.01,0.33222039]
[1743385427887,2.3402365,603.4,602.01,0.33222039]
[1743385428291,6.08430848,603.45,602.01,0.33222039]
[1743385428490,2.34133546,603.44,602.01,0.33222039]
[1743385428685,3.9483902,603.44,602.01,0.33222039]
[1743385428891,1.43958437,603.43,602.01,0.33222039]
[1743385429092,2.3402365,603.43,602.01,0.33222039]
[1743385429293,3.50833173,603.43,602.01,0.33222039]
[1743385429493,2.3402365,603.42,602.01,0.33222039]
[1743385429693,0.90065213,603.42,602.01,0.33222039]
[1743385429893,1.16809523,603.43,602.01,0.33222039]
[1743385429894,2.3402365,603.43,602.01,0.33222039]
[1743385430687,6.0849711,603.45,602.01,0.33222039]
[1743385430893,2.34158998,603.44,602.01,0.33222039]
[1743385431093,3.94832423,603.44,602.01,0.33222039]
[1743385431294,1.43987297,603.43,602.01,0.33222039]
[1743385431490,2.34045913,603.43,602.01,0.33222039]
[1743385432190,6.0857493,603.45,602.01,0.33222039]
[1743385432389,2.34173757,603.44,602.01,0.33222039]
[1743385432590,0.90058616,603.44,602.01,0.33222039]
[1743385432999,3.94832423,603.44,602.01,0.33222039]
[1743385433191,3.74432998,603.43,602.01,0.33222039]
[1743385433396,6.08626512,603.43,602.01,0.33222039]
[1743385433597,0.90058616,603.42,602.01,0.33222039]
[1743385433791,6.08626553,603.43,602.01,0.33222039]
[1743385433994,0.90058616,603.42,602.01,0.33222039]
[1743385434191,3.04773807,603.42,602.01,0.33222039]
[1743385434399,9.13401687,603.42,602.01,0.33222039]
[1743385434593,2.34045913,603.41,602.01,0.33222039]
[1743385434992,0.90058616,603.41,602.01,0.33222039]
[1743385435498,6.08661248,603.45,602.01,0.33222039]
[1743385435702,2.34191517,603.44,602.01,0.33222039]
[1743385435903,3.7821956,603.44,602.01,0.33222039]
[1743385436399,1.16809523,603.43,602.01,0.33222039]
[1743385436596,3.5100104,603.43,602.01,0.33222039]
[1743385436793,1.16809523,603.42,602.01,0.33222039]
[1743385436993,3.5100104,603.42,602.01,0.33222039]
[1743385437192,2.34094602,603.41,602.01,0.33222039]
[1743385437400,4.95037026,603.42,602.01,0.33222039]
[1743385437604,3.74493564,603.41,602.01,0.33222039]
[1743385437803,4.95037026,603.41,602.01,0.33222039]
[1743385438101,3.74493564,603.4,602.01,0.33222039]
[1743385438295,4.95037026,603.4,602.01,0.33222039]
[1743385438502,1.44035986,603.39,602.01,0.33222039]
[1743385438701,2.34094602,603.39,602.01,0.33222039]
[1743385438997,2.06868139,603.4,602.01,0.33222039]
[1743385439300,1.16809523,603.39,602.01,0.33222039]
[1743385439700,3.5089974,603.39,602.01,0.33222039]
[1743385439897,2.34090217,603.38,602.01,0.33222039]
[1743385440097,0.90058616,603.38,602.01,0.33222039]
[1743385440297,1.16809523,603.39,602.01,0.33222039]
[1743385440903,0.90058616,603.43,602.01,0.33222039]
[1743385441199,3.50891461,603.46,602.01,0.33222039]
[1743385441403,1.16809523,603.46,602.01,0.33222039]
[1743385442108,1.786,603.47,602.01,0.33222039]
[1743385447105,2.67507401,603.51,602.01,0.33222039]
[1743385448112,0.33139467,603.51,602.01,0.33222039]
[1743385448612,1.16809523,603.5,602.01,0.33222039]
[1743385449007,2.61103893,603.5,602.01,0.33222039]
[1743385449207,2.61103893,603.49,602.01,0.33222039]
[1743385449516,1.16809523,603.49,602.01,0.33222039]
[1743385449911,1.16809523,603.48,602.01,0.33222039]
[1743385450510,1.992,603.47,602.01,0.33222039]
[1743385450709,6.9511755,603.47,602.01,0.33222039]
[1743385450906,6.10057977,603.46,602.01,0.33222039]
[1743385451109,2.34813657,603.45,602.01,0.33222039]
[1743385451309,0.90312945,603.45,602.01,0.33222039]
[1743385451509,2.34607315,603.45,602.01,0.33222039]
[1743385451910,1.16809523,603.44,602.01,0.33222039]
[1743385452110,3.51416838,603.44,602.01,0.33222039]
[1743385452411,2.34815719,603.43,602.01,0.33222039]
[1743385452616,1.16809523,603.43,602.01,0.33222039]
[1743385452809,2.61272218,603.43,602.01,0.33222039]
[1743385453014,1.16809523,603.43,602.01,0.33222039]
[1743385453214,2.61272218,603.45,602.01,0.33222039]
[1743385453414,1.16809523,603.45,602.01,0.33222039]
[1743385453811,1.992,603.47,602.01,0.33222039]
[1743385454810,1.992,603.47,602.06,2.5510302]
[1743385455015,1.992,603.47,602.08,0.33218176]
[1743385466729,6.0999483,603.53,602.08,0.33218176]
[1743385467026,6.0999483,603.52,602.08,0.33218176]
[1743385467228,2.34742289,603.51,602.08,0.33218176]
[1743385467527,0.90285496,603.51,602.08,0.33218176]
[1743385467827,1.17778338,603.5,602.08,0.33218176]
[1743385468329,1.17778338,603.49,602.08,0.33218176]
[1743385468529,4.96848527,603.49,602.08,0.33218176]
[1743385468728,3.75252541,603.48,602.08,0.33218176]
[1743385468928,2.34613396,603.48,602.08,0.33218176]
[1743385469331,1.17778338,603.48,602.08,0.33218176]
[1743385469530,3.52574398,603.48,602.08,0.33218176]
[1743385469723,1.17778338,603.47,602.08,0.33218176]
[1743385470029,3.52391734,603.47,602.08,0.33218176]
[1743385470225,3.423279,603.46,602.08,0.33218176]